[Event "Early-Titled-Tuesday-Blitz-March-05-2024"]
[Site "Chess.com"]
[Date "2024.03.05"]
[Round "10"]
[White "tylityli"]
[Black "kleopl"]
[Result "0-1"]
[WhiteElo "2304"]
[BlackElo "2496"]
[TimeControl "180+1"]
[EndTime "9:54:01 PST"]
[Termination "kleopl won by resignation"]

1. d4 {[%clk 0:02:59]} 1... Nf6 {[%clk 0:02:57.8]} 2. c4 {[%clk 0:02:59.6]} 2...
e6 {[%clk 0:02:58]} 3. Nc3 {[%clk 0:03:00.2]} 3... Bb4 {[%clk 0:02:57.6]} 4. e3
{[%clk 0:03:00.7]} 4... c5 {[%clk 0:02:56.7]} 5. Ne2 {[%clk 0:03:01.6]} 5...
cxd4 {[%clk 0:02:57]} 6. exd4 {[%clk 0:03:01.2]} 6... O-O {[%clk 0:02:56.2]} 7.
a3 {[%clk 0:02:59.9]} 7... Be7 {[%clk 0:02:56.2]} 8. d5 {[%clk 0:02:59.7]} 8...
exd5 {[%clk 0:02:51.3]} 9. cxd5 {[%clk 0:03:00.6]} 9... d6 {[%clk 0:02:48.1]}
10. Ng3 {[%clk 0:02:59.7]} 10... Bg4 {[%clk 0:02:40.9]} 11. Be2 {[%clk
0:02:58.6]} 11... Bxe2 {[%clk 0:02:40.9]} 12. Qxe2 {[%clk 0:02:58.9]} 12... Nfd7
{[%clk 0:02:36.7]} 13. O-O {[%clk 0:02:56.2]} 13... Bf6 {[%clk 0:02:32.5]} 14.
Bf4 {[%clk 0:02:55.3]} 14... Be5 {[%clk 0:02:31.1]} 15. Qd2 {[%clk 0:02:54.8]}
15... Na6 {[%clk 0:02:28.4]} 16. b4 {[%clk 0:02:52.7]} 16... Nc7 {[%clk
0:02:27.8]} 17. Nge4 {[%clk 0:02:46.1]} 17... Nf6 {[%clk 0:02:17.5]} 18. Bxe5
{[%clk 0:02:34.7]} 18... dxe5 {[%clk 0:02:17.2]} 19. d6 {[%clk 0:02:33.5]} 19...
Nxe4 {[%clk 0:02:16]} 20. Nxe4 {[%clk 0:02:31.6]} 20... Ne6 {[%clk 0:02:16.2]}
21. Qd5 {[%clk 0:02:31.4]} 21... Nf4 {[%clk 0:02:03.9]} 22. Qxb7 {[%clk
0:02:24.9]} 22... Qh4 {[%clk 0:01:53.7]} 23. g3 {[%clk 0:02:11.4]} 23... Qg4
{[%clk 0:01:48.3]} 24. f3 {[%clk 0:02:03]} 24... Qg6 {[%clk 0:01:47.9]} 25. Qd5
{[%clk 0:01:57]} 25... Nxd5 {[%clk 0:01:45.7]} 0-1

[Event "Early-Titled-Tuesday-Blitz-March-05-2024"]
[Site "Chess.com"]
[Date "2024.03.05"]
[Round "10"]
[White "giomar27"]
[Black "N4700000"]
[Result "0-1"]
[WhiteElo "2398"]
[BlackElo "2493"]
[TimeControl "180+1"]
[EndTime "9:54:35 PST"]
[Termination "N4700000 won by resignation"]

1. e4 {[%clk 0:03:00.9]} 1... c5 {[%clk 0:02:59.3]} 2. Nf3 {[%clk 0:03:01]} 2...
d6 {[%clk 0:02:59.4]} 3. d4 {[%clk 0:03:00.5]} 3... cxd4 {[%clk 0:03:00.3]} 4.
Nxd4 {[%clk 0:03:01.4]} 4... Nf6 {[%clk 0:02:59.9]} 5. Nc3 {[%clk 0:03:02.1]}
5... g6 {[%clk 0:03:00.4]} 6. g3 {[%clk 0:02:55.9]} 6... Nc6 {[%clk 0:02:58.7]}
7. Nde2 {[%clk 0:02:55.1]} 7... Bg7 {[%clk 0:02:57.7]} 8. Bg2 {[%clk 0:02:55.8]}
8... O-O {[%clk 0:02:57.6]} 9. O-O {[%clk 0:02:56.5]} 9... Bd7 {[%clk
0:02:51.2]} 10. h3 {[%clk 0:02:56]} 10... Rc8 {[%clk 0:02:49.7]} 11. Be3 {[%clk
0:02:56]} 11... a6 {[%clk 0:02:41.4]} 12. a4 {[%clk 0:02:55.2]} 12... Ne5 {[%clk
0:02:39.2]} 13. f4 {[%clk 0:02:47.9]} 13... Nc4 {[%clk 0:02:37.6]} 14. Bc1
{[%clk 0:02:48.1]} 14... Nxb2 {[%clk 0:01:53.2]} 15. Bxb2 {[%clk 0:02:43.8]}
15... Qb6+ {[%clk 0:01:53.6]} 16. Qd4 {[%clk 0:02:44.5]} 16... Qxb2 {[%clk
0:01:53.7]} 17. Rfb1 {[%clk 0:02:36]} 17... Qxc2 {[%clk 0:01:49]} 18. Ra2 {[%clk
0:02:36.1]} 18... e5 {[%clk 0:01:32.6]} 19. fxe5 {[%clk 0:02:23.8]} 19... dxe5
{[%clk 0:01:31]} 20. Qd6 {[%clk 0:02:24.1]} 20... Rxc3 {[%clk 0:01:08.6]} 21.
Rxc2 {[%clk 0:02:22.8]} 21... Rxc2 {[%clk 0:01:09.5]} 22. Nc1 {[%clk 0:02:12.2]}
22... Bc6 {[%clk 0:01:05.6]} 23. Qd3 {[%clk 0:02:04.1]} 23... Rxg2+ {[%clk
0:01:03.1]} 24. Kf1 {[%clk 0:01:59.3]} 24... Bxe4 {[%clk 0:01:02.4]} 0-1

[Event "Early-Titled-Tuesday-Blitz-March-05-2024"]
[Site "Chess.com"]
[Date "2024.03.05"]
[Round "10"]
[White "Igor_Lysyj"]
[Black "profedechess93"]
[Result "1-0"]
[WhiteElo "2816"]
[BlackElo "2638"]
[TimeControl "180+1"]
[EndTime "9:55:24 PST"]
[Termination "Igor_Lysyj won by resignation"]

1. d4 {[%clk 0:02:54.9]} 1... d5 {[%clk 0:02:59.7]} 2. c4 {[%clk 0:02:54.7]}
2... c6 {[%clk 0:02:59.2]} 3. Nf3 {[%clk 0:02:54.3]} 3... Nf6 {[%clk 0:02:59.4]}
4. e3 {[%clk 0:02:54.9]} 4... e6 {[%clk 0:02:58.4]} 5. Bd3 {[%clk 0:02:54.4]}
5... Nbd7 {[%clk 0:02:59]} 6. O-O {[%clk 0:02:54.7]} 6... Bd6 {[%clk 0:02:59.6]}
7. Nc3 {[%clk 0:02:54.8]} 7... O-O {[%clk 0:03:00.2]} 8. e4 {[%clk 0:02:55.3]}
8... dxc4 {[%clk 0:02:59.7]} 9. Bxc4 {[%clk 0:02:55.8]} 9... e5 {[%clk
0:03:00.4]} 10. Be3 {[%clk 0:02:56.1]} 10... Qe7 {[%clk 0:02:57]} 11. Re1 {[%clk
0:02:30.6]} 11... b5 {[%clk 0:02:54.3]} 12. Bb3 {[%clk 0:02:28.8]} 12... a6
{[%clk 0:02:53.1]} 13. a4 {[%clk 0:02:05.3]} 13... Rb8 {[%clk 0:02:48.5]} 14.
axb5 {[%clk 0:02:03.8]} 14... axb5 {[%clk 0:02:49.4]} 15. Ra7 {[%clk 0:01:56.4]}
15... Bb7 {[%clk 0:02:26.1]} 16. d5 {[%clk 0:01:54.9]} 16... Bc5 {[%clk
0:02:14.9]} 17. dxc6 {[%clk 0:01:51.4]} 17... Bxc6 {[%clk 0:02:07.9]} 18. Bxc5
{[%clk 0:01:46.1]} 18... Qxc5 {[%clk 0:02:06.8]} 19. Ra1 {[%clk 0:01:46]} 19...
Rfd8 {[%clk 0:02:00.3]} 20. Rc1 {[%clk 0:01:43]} 20... Qb4 {[%clk 0:01:21.4]}
21. Na2 {[%clk 0:01:40]} 21... Qa5 {[%clk 0:00:52.8]} 22. Rxc6 {[%clk
0:01:37.8]} 22... Nc5 {[%clk 0:00:53.4]} 23. Qc2 {[%clk 0:01:26.4]} 1-0

[Event "Early-Titled-Tuesday-Blitz-March-05-2024"]
[Site "Chess.com"]
[Date "2024.03.05"]
[Round "10"]
[White "ChessLover0108"]
[Black "Kobalia"]
[Result "1-0"]
[WhiteElo "2961"]
[BlackElo "2812"]
[TimeControl "180+1"]
[EndTime "9:55:49 PST"]
[Termination "ChessLover0108 won by resignation"]

1. d4 {[%clk 0:03:00.9]} 1... d5 {[%clk 0:03:00.3]} 2. Nf3 {[%clk 0:03:00.2]}
2... Nf6 {[%clk 0:02:59.9]} 3. c4 {[%clk 0:03:00.1]} 3... c6 {[%clk 0:03:00.4]}
4. e3 {[%clk 0:02:56]} 4... Bf5 {[%clk 0:02:57.8]} 5. Nc3 {[%clk 0:02:56.1]}
5... e6 {[%clk 0:02:58.1]} 6. Nh4 {[%clk 0:02:55.8]} 6... Bg6 {[%clk 0:02:58.5]}
7. Nxg6 {[%clk 0:02:50.3]} 7... hxg6 {[%clk 0:02:58]} 8. g3 {[%clk 0:02:47.6]}
8... Be7 {[%clk 0:02:56.3]} 9. Qe2 {[%clk 0:02:41.3]} 9... Nbd7 {[%clk
0:02:53.7]} 10. Bg2 {[%clk 0:02:39.8]} 10... Nb6 {[%clk 0:02:53.8]} 11. b3
{[%clk 0:02:36]} 11... Bb4 {[%clk 0:02:52.2]} 12. Bd2 {[%clk 0:02:30.8]} 12...
O-O {[%clk 0:02:25.5]} 13. O-O {[%clk 0:02:26.2]} 13... Re8 {[%clk 0:02:16.8]}
14. Rfd1 {[%clk 0:02:11.1]} 14... Nbd7 {[%clk 0:02:09.6]} 15. Nxd5 {[%clk
0:01:52.2]} 15... Nxd5 {[%clk 0:01:51.9]} 16. cxd5 {[%clk 0:01:51.6]} 16... Bxd2
{[%clk 0:01:52]} 17. dxc6 {[%clk 0:01:43.9]} 17... Bc3 {[%clk 0:01:47.6]} 18.
Rac1 {[%clk 0:01:38.3]} 18... Bb4 {[%clk 0:01:39.7]} 19. Qb5 {[%clk 0:01:34.9]}
19... Ba3 {[%clk 0:00:29.3]} 20. cxd7 {[%clk 0:01:34.4]} 20... Re7 {[%clk
0:00:29.2]} 21. Qxb7 {[%clk 0:01:33.5]} 1-0

[Event "Early-Titled-Tuesday-Blitz-March-05-2024"]
[Site "Chess.com"]
[Date "2024.03.05"]
[Round "10"]
[White "Casper"]
[Black "David_George21"]
[Result "1-0"]
[WhiteElo "2513"]
[BlackElo "2407"]
[TimeControl "180+1"]
[EndTime "9:55:52 PST"]
[Termination "Casper won by checkmate"]

1. e4 {[%clk 0:02:57.4]} 1... c5 {[%clk 0:02:59.1]} 2. d4 {[%clk 0:02:57.6]}
2... cxd4 {[%clk 0:02:56.7]} 3. Qxd4 {[%clk 0:02:58.5]} 3... Nc6 {[%clk
0:02:50]} 4. Qe3 {[%clk 0:02:59.1]} 4... g6 {[%clk 0:02:45.5]} 5. Nc3 {[%clk
0:02:59.4]} 5... Bg7 {[%clk 0:02:45.6]} 6. Bd2 {[%clk 0:03:00]} 6... d6 {[%clk
0:02:43.1]} 7. O-O-O {[%clk 0:03:00.4]} 7... Nf6 {[%clk 0:02:43.3]} 8. Nd5
{[%clk 0:02:59.2]} 8... O-O {[%clk 0:02:31.5]} 9. Bc3 {[%clk 0:02:59.1]} 9...
Nxd5 {[%clk 0:02:23.8]} 10. exd5 {[%clk 0:03:00]} 10... Ne5 {[%clk 0:02:24.1]}
11. h3 {[%clk 0:02:57.7]} 11... a6 {[%clk 0:02:11.8]} 12. f4 {[%clk 0:02:53.2]}
12... Nd7 {[%clk 0:02:11.6]} 13. Bxg7 {[%clk 0:02:52.6]} 13... Kxg7 {[%clk
0:02:12.5]} 14. Nf3 {[%clk 0:02:53.2]} 14... b5 {[%clk 0:02:12.3]} 15. g4 {[%clk
0:02:50]} 15... Bb7 {[%clk 0:02:12]} 16. h4 {[%clk 0:02:46.8]} 16... Rc8 {[%clk
0:02:11.7]} 17. h5 {[%clk 0:02:46.7]} 17... Nf6 {[%clk 0:02:03]} 18. hxg6 {[%clk
0:02:33.2]} 18... fxg6 {[%clk 0:01:59.6]} 19. Ng5 {[%clk 0:02:30.8]} 19... Qd7
{[%clk 0:01:46.8]} 20. Ne6+ {[%clk 0:02:28.1]} 20... Kg8 {[%clk 0:01:46.7]} 21.
Nxf8 {[%clk 0:02:22]} 21... Rxf8 {[%clk 0:01:47.6]} 22. Bg2 {[%clk 0:02:18.3]}
22... Nxg4 {[%clk 0:01:45.7]} 23. Qh3 {[%clk 0:02:06.1]} 23... h5 {[%clk
0:01:35.2]} 24. Be4 {[%clk 0:02:06.5]} 24... Rf6 {[%clk 0:01:27.7]} 25. Rdg1
{[%clk 0:01:54.1]} 25... Qc8 {[%clk 0:01:03.8]} 26. Bxg6 {[%clk 0:01:36]} 26...
Rxg6 {[%clk 0:01:02.4]} 27. Qxh5 {[%clk 0:01:36.6]} 27... Rg7 {[%clk 0:00:54.3]}
28. Rh4 {[%clk 0:01:34.3]} 28... Qc5 {[%clk 0:00:20.1]} 29. Qe8# {[%clk
0:01:32.6]} 1-0

[Event "Early-Titled-Tuesday-Blitz-March-05-2024"]
[Site "Chess.com"]
[Date "2024.03.05"]
[Round "10"]
[White "Eliwood44"]
[Black "GelmanAlexander"]
[Result "0-1"]
[WhiteElo "2516"]
[BlackElo "2671"]
[TimeControl "180+1"]
[EndTime "9:55:55 PST"]
[Termination "GelmanAlexander won by checkmate"]

1. d4 {[%clk 0:02:55.2]} 1... Nf6 {[%clk 0:02:59.7]} 2. c4 {[%clk 0:02:53.5]}
2... c5 {[%clk 0:03:00]} 3. d5 {[%clk 0:02:53.1]} 3... b5 {[%clk 0:03:00.3]} 4.
cxb5 {[%clk 0:02:46.9]} 4... a6 {[%clk 0:03:00.5]} 5. bxa6 {[%clk 0:02:44.1]}
5... e6 {[%clk 0:03:00.5]} 6. Nc3 {[%clk 0:02:42.7]} 6... exd5 {[%clk
0:03:00.5]} 7. Nxd5 {[%clk 0:02:41.5]} 7... Nxa6 {[%clk 0:03:00.8]} 8. e4 {[%clk
0:02:40.6]} 8... Nxd5 {[%clk 0:02:58.5]} 9. exd5 {[%clk 0:02:38.3]} 9... Nb4
{[%clk 0:02:58.7]} 10. Bc4 {[%clk 0:02:31.2]} 10... Qe7+ {[%clk 0:02:58.4]} 11.
Ne2 {[%clk 0:02:28.1]} 11... Qe4 {[%clk 0:02:58.2]} 12. Bb3 {[%clk 0:02:18.9]}
12... Nd3+ {[%clk 0:02:58.1]} 13. Kf1 {[%clk 0:02:18.8]} 13... Ba6 {[%clk
0:02:59]} 14. Be3 {[%clk 0:02:11.4]} 14... Bd6 {[%clk 0:02:49.7]} 15. Kg1 {[%clk
0:02:06.9]} 15... O-O {[%clk 0:02:41.2]} 16. Nc3 {[%clk 0:02:01.1]} 16... Qh4
{[%clk 0:02:34.9]} 17. Rb1 {[%clk 0:01:51.1]} 17... Rfe8 {[%clk 0:02:30.8]} 18.
Qd2 {[%clk 0:01:43.7]} 18... f5 {[%clk 0:02:15.2]} 19. Bc2 {[%clk 0:01:37.5]}
19... c4 {[%clk 0:01:44.1]} 20. Bxd3 {[%clk 0:01:34.9]} 20... cxd3 {[%clk
0:01:44.4]} 21. g3 {[%clk 0:01:32.8]} 21... Qh3 {[%clk 0:01:42.7]} 22. b4 {[%clk
0:01:24.7]} 22... Bc4 {[%clk 0:01:40.6]} 23. Bf4 {[%clk 0:01:13.3]} 23... Re2
{[%clk 0:01:22.9]} 24. Qd1 {[%clk 0:00:41.5]} 24... Bxf4 {[%clk 0:01:19.6]} 25.
gxf4 {[%clk 0:00:34.6]} 25... Ra6 {[%clk 0:01:14.6]} 26. Nxe2 {[%clk 0:00:30.7]}
26... dxe2 {[%clk 0:01:13.2]} 27. Qd4 {[%clk 0:00:30.6]} 27... Rg6# {[%clk
0:01:12.5]} 0-1

[Event "Early-Titled-Tuesday-Blitz-March-05-2024"]
[Site "Chess.com"]
[Date "2024.03.05"]
[Round "10"]
[White "esrosenberg"]
[Black "klercaku"]
[Result "1-0"]
[WhiteElo "2458"]
[BlackElo "2215"]
[TimeControl "180+1"]
[EndTime "9:56:00 PST"]
[Termination "esrosenberg won by resignation"]

1. d4 {[%clk 0:02:25.7]} 1... d5 {[%clk 0:02:59.6]} 2. c4 {[%clk 0:02:25.6]}
2... e6 {[%clk 0:02:59.9]} 3. Nc3 {[%clk 0:02:25.6]} 3... Nf6 {[%clk 0:03:00.5]}
4. cxd5 {[%clk 0:02:25.9]} 4... exd5 {[%clk 0:03:00.1]} 5. Bg5 {[%clk
0:02:26.5]} 5... Nbd7 {[%clk 0:02:59.6]} 6. e3 {[%clk 0:02:26.1]} 6... Be7
{[%clk 0:02:58.6]} 7. Bd3 {[%clk 0:02:26.2]} 7... O-O {[%clk 0:02:57.4]} 8. Nge2
{[%clk 0:02:25.4]} 8... Re8 {[%clk 0:02:54.1]} 9. O-O {[%clk 0:02:25.8]} 9... h6
{[%clk 0:02:54.3]} 10. Bh4 {[%clk 0:02:25.6]} 10... c6 {[%clk 0:02:54.7]} 11.
Kh1 {[%clk 0:02:25.5]} 11... Nf8 {[%clk 0:02:55.4]} 12. f3 {[%clk 0:02:25.4]}
12... Ne6 {[%clk 0:02:51.5]} 13. Bf2 {[%clk 0:02:25.5]} 13... Bd6 {[%clk
0:02:48.6]} 14. Bg1 {[%clk 0:02:25.5]} 14... a6 {[%clk 0:02:32.6]} 15. e4 {[%clk
0:02:21]} 15... dxe4 {[%clk 0:02:32.3]} 16. fxe4 {[%clk 0:02:21.4]} 16... Ng4
{[%clk 0:02:31.3]} 17. e5 {[%clk 0:02:21.5]} 17... Bc7 {[%clk 0:02:16.9]} 18. h3
{[%clk 0:01:43.5]} 18... Qh4 {[%clk 0:02:07.2]} 19. Qe1 {[%clk 0:01:43.3]} 19...
Qh5 {[%clk 0:01:57.5]} 20. Ng3 {[%clk 0:01:43.2]} 20... Qh4 {[%clk 0:01:54.8]}
21. Nf5 {[%clk 0:01:43.4]} 21... Qh5 {[%clk 0:01:50.8]} 22. Qh4 {[%clk
0:01:35.5]} 22... Qxh4 {[%clk 0:01:32.4]} 23. Nxh4 {[%clk 0:01:35]} 23... Nxe5
{[%clk 0:01:22]} 24. dxe5 {[%clk 0:01:34.8]} 24... Bxe5 {[%clk 0:01:22.7]} 25.
Rae1 {[%clk 0:01:31.8]} 25... Bf6 {[%clk 0:01:20.2]} 26. Nf5 {[%clk 0:01:29.9]}
26... Rd8 {[%clk 0:01:14.3]} 27. Bb1 {[%clk 0:01:27.3]} 27... Bd7 {[%clk
0:01:13.5]} 28. Nxh6+ {[%clk 0:01:26.3]} 28... gxh6 {[%clk 0:01:13]} 29. Rxf6
{[%clk 0:01:25.8]} 29... Kg7 {[%clk 0:01:13.1]} 30. Ref1 {[%clk 0:01:23.4]}
30... Be8 {[%clk 0:01:10.4]} 31. Bh2 {[%clk 0:01:18.9]} 31... Rd2 {[%clk
0:01:03.5]} 32. Be5 {[%clk 0:01:19]} 32... Kg8 {[%clk 0:01:02.7]} 33. Rxh6
{[%clk 0:01:18.3]} 33... Kf8 {[%clk 0:00:51.6]} 34. Rxe6 {[%clk 0:01:13.9]} 1-0

[Event "Early-Titled-Tuesday-Blitz-March-05-2024"]
[Site "Chess.com"]
[Date "2024.03.05"]
[Round "10"]
[White "GM4life"]
[Black "AlexTruskavetsky"]
[Result "0-1"]
[WhiteElo "2516"]
[BlackElo "2711"]
[TimeControl "180+1"]
[EndTime "9:56:05 PST"]
[Termination "AlexTruskavetsky won by resignation"]

1. d4 {[%clk 0:03:00.9]} 1... Nf6 {[%clk 0:02:55.6]} 2. c4 {[%clk 0:03:01.5]}
2... e6 {[%clk 0:02:54]} 3. Nf3 {[%clk 0:02:59]} 3... d5 {[%clk 0:02:53.9]} 4.
Nc3 {[%clk 0:02:57.3]} 4... dxc4 {[%clk 0:02:53.9]} 5. e4 {[%clk 0:02:55.7]}
5... b5 {[%clk 0:02:46.9]} 6. e5 {[%clk 0:02:55.8]} 6... Nd5 {[%clk 0:02:47.3]}
7. Nxb5 {[%clk 0:02:56.4]} 7... Nb6 {[%clk 0:02:48]} 8. Be2 {[%clk 0:02:54.2]}
8... Bb7 {[%clk 0:02:48]} 9. Be3 {[%clk 0:02:54.2]} 9... N8d7 {[%clk 0:02:48.1]}
10. O-O {[%clk 0:02:54.4]} 10... Be7 {[%clk 0:02:46.2]} 11. Rc1 {[%clk
0:02:54.9]} 11... O-O {[%clk 0:02:46.2]} 12. Nd2 {[%clk 0:02:51.4]} 12... a6
{[%clk 0:02:46.3]} 13. Nc3 {[%clk 0:02:51.1]} 13... Bg5 {[%clk 0:02:40.3]} 14.
f4 {[%clk 0:02:46]} 14... Be7 {[%clk 0:02:34.7]} 15. Nxc4 {[%clk 0:02:46.1]}
15... Nxc4 {[%clk 0:02:35.2]} 16. Bxc4 {[%clk 0:02:46.3]} 16... Nb6 {[%clk
0:02:35.6]} 17. Bd3 {[%clk 0:02:46.9]} 17... Rc8 {[%clk 0:02:23]} 18. f5 {[%clk
0:02:38.6]} 18... Bg5 {[%clk 0:02:23]} 19. Qd2 {[%clk 0:02:32.4]} 19... Qxd4
{[%clk 0:02:15.8]} 20. Bxd4 {[%clk 0:02:30.6]} 20... Bxd2 {[%clk 0:02:16.7]} 21.
Rc2 {[%clk 0:02:26.8]} 21... Bh6 {[%clk 0:02:09.9]} 22. b4 {[%clk 0:02:04.3]}
22... Rfd8 {[%clk 0:02:07.6]} 23. Ne2 {[%clk 0:01:28.9]} 23... Rxd4 {[%clk
0:02:06.6]} 24. Nxd4 {[%clk 0:01:29.8]} 24... Be3+ {[%clk 0:02:07]} 25. Kh1
{[%clk 0:01:30.7]} 25... Bxd4 {[%clk 0:02:07.9]} 26. fxe6 {[%clk 0:01:30]} 26...
fxe6 {[%clk 0:02:08.8]} 27. Re1 {[%clk 0:01:23.7]} 27... Nd5 {[%clk 0:01:59.5]}
28. a3 {[%clk 0:01:21.2]} 28... c5 {[%clk 0:01:58.8]} 29. Be4 {[%clk 0:01:19.6]}
29... cxb4 {[%clk 0:01:53.1]} 30. Rxc8+ {[%clk 0:01:18.8]} 30... Bxc8 {[%clk
0:01:53.2]} 31. Bxd5 {[%clk 0:01:19.3]} 31... exd5 {[%clk 0:01:54.1]} 32. axb4
{[%clk 0:01:19.3]} 32... Be6 {[%clk 0:01:47.7]} 33. Rc1 {[%clk 0:01:17.3]} 33...
Kf7 {[%clk 0:01:43.1]} 34. Rc7+ {[%clk 0:01:16.7]} 34... Kg6 {[%clk 0:01:42.3]}
35. Rc6 {[%clk 0:01:10.3]} 35... Kf5 {[%clk 0:01:42.7]} 36. Rxa6 {[%clk
0:01:10.8]} 36... Bxe5 {[%clk 0:01:43]} 37. b5 {[%clk 0:01:10.2]} 37... d4
{[%clk 0:01:43.5]} 38. b6 {[%clk 0:01:10.6]} 38... d3 {[%clk 0:01:42.8]} 39. Ra8
{[%clk 0:00:59.8]} 39... Bd5 {[%clk 0:01:37]} 40. Rf8+ {[%clk 0:00:55.9]} 40...
Bf6 {[%clk 0:01:33.2]} 0-1

[Event "Early-Titled-Tuesday-Blitz-March-05-2024"]
[Site "Chess.com"]
[Date "2024.03.05"]
[Round "10"]
[White "MasterKroket"]
[Black "TimGrutter03"]
[Result "0-1"]
[WhiteElo "2496"]
[BlackElo "2631"]
[TimeControl "180+1"]
[EndTime "9:56:11 PST"]
[Termination "TimGrutter03 won by resignation"]

1. e4 {[%clk 0:02:58.1]} 1... c6 {[%clk 0:02:58.7]} 2. d4 {[%clk 0:02:57.8]}
2... d5 {[%clk 0:02:59.2]} 3. e5 {[%clk 0:02:58.1]} 3... c5 {[%clk 0:02:59]} 4.
dxc5 {[%clk 0:02:57.6]} 4... e6 {[%clk 0:02:59.1]} 5. b4 {[%clk 0:02:56.5]} 5...
a5 {[%clk 0:02:53.8]} 6. c3 {[%clk 0:02:56.5]} 6... b6 {[%clk 0:02:53.8]} 7.
Bb5+ {[%clk 0:02:56]} 7... Bd7 {[%clk 0:02:52.4]} 8. Bxd7+ {[%clk 0:02:42.9]}
8... Qxd7 {[%clk 0:02:42.8]} 9. cxb6 {[%clk 0:02:38]} 9... axb4 {[%clk 0:02:43]}
10. Nf3 {[%clk 0:02:35.9]} 10... Qb5 {[%clk 0:02:34.4]} 11. Qb3 {[%clk
0:02:22.5]} 11... Qxb6 {[%clk 0:02:23.3]} 12. Be3 {[%clk 0:02:22.6]} 12... Qb5
{[%clk 0:02:14.2]} 13. Nd4 {[%clk 0:02:16.6]} 13... Qd3 {[%clk 0:02:10.2]} 14.
cxb4 {[%clk 0:02:06]} 14... Qxb3 {[%clk 0:02:09.2]} 15. Nxb3 {[%clk 0:02:06.9]}
15... Bxb4+ {[%clk 0:02:07.8]} 16. Ke2 {[%clk 0:02:02.3]} 16... Nc6 {[%clk
0:02:06.3]} 17. f4 {[%clk 0:02:02.1]} 17... Nge7 {[%clk 0:02:01.1]} 18. N1d2
{[%clk 0:01:52.8]} 18... Bc3 {[%clk 0:01:56]} 19. Rac1 {[%clk 0:01:42.9]} 19...
d4 {[%clk 0:01:56.4]} 20. Bf2 {[%clk 0:01:33.5]} 20... Rxa2 {[%clk 0:01:55.6]}
21. Rhd1 {[%clk 0:01:30.8]} 21... O-O {[%clk 0:01:54]} 22. Kd3 {[%clk
0:01:22.5]} 22... Nb4+ {[%clk 0:01:35.1]} 23. Ke4 {[%clk 0:01:22.3]} 23... Nbc6
{[%clk 0:00:51.9]} 24. Bxd4 {[%clk 0:01:14.7]} 24... Bxd4 {[%clk 0:00:45]} 25.
Nxd4 {[%clk 0:01:13.9]} 25... Ra4 {[%clk 0:00:40.2]} 26. Nf3 {[%clk 0:01:06.4]}
26... Rd8 {[%clk 0:00:38.3]} 27. Ke3 {[%clk 0:01:05.3]} 27... Nxd4 {[%clk
0:00:38.4]} 28. Nxd4 {[%clk 0:01:02.5]} 28... Raxd4 {[%clk 0:00:38.2]} 0-1

[Event "Early-Titled-Tuesday-Blitz-March-05-2024"]
[Site "Chess.com"]
[Date "2024.03.05"]
[Round "10"]
[White "goodnigth"]
[Black "PawnEatingZombie"]
[Result "1-0"]
[WhiteElo "2039"]
[BlackElo "2178"]
[TimeControl "180+1"]
[EndTime "9:56:20 PST"]
[Termination "goodnigth won by resignation"]

1. d4 {[%clk 0:02:55.2]} 1... Nf6 {[%clk 0:02:59]} 2. Nf3 {[%clk 0:02:53.6]}
2... g6 {[%clk 0:02:59]} 3. Nc3 {[%clk 0:02:53.6]} 3... d5 {[%clk 0:02:55.8]} 4.
Bf4 {[%clk 0:02:53.7]} 4... Bg7 {[%clk 0:02:54.9]} 5. h3 {[%clk 0:02:48.4]} 5...
c6 {[%clk 0:02:54.8]} 6. e3 {[%clk 0:02:47.6]} 6... O-O {[%clk 0:02:49.6]} 7.
Be2 {[%clk 0:02:44.5]} 7... Nbd7 {[%clk 0:02:40.8]} 8. O-O {[%clk 0:02:37.7]}
8... Ne4 {[%clk 0:02:15.8]} 9. Nxe4 {[%clk 0:02:31.3]} 9... dxe4 {[%clk
0:02:16]} 10. Nd2 {[%clk 0:02:08.2]} 10... e5 {[%clk 0:02:15.6]} 11. dxe5 {[%clk
0:02:04.9]} 11... Nxe5 {[%clk 0:02:15.4]} 12. Nxe4 {[%clk 0:02:01.7]} 12... Qb6
{[%clk 0:02:08]} 13. Qc1 {[%clk 0:01:40.6]} 13... h6 {[%clk 0:01:58.8]} 14. a4
{[%clk 0:01:38]} 14... a5 {[%clk 0:01:58.2]} 15. Rd1 {[%clk 0:01:28.6]} 15...
Be6 {[%clk 0:01:57.4]} 16. Rb1 {[%clk 0:01:10.5]} 16... Rfd8 {[%clk 0:01:51.3]}
17. b3 {[%clk 0:01:09.5]} 17... c5 {[%clk 0:01:32.8]} 18. Bb5 {[%clk 0:01:03.1]}
18... f5 {[%clk 0:01:18.5]} 19. Nd2 {[%clk 0:00:43.7]} 19... g5 {[%clk
0:01:13.4]} 20. Bh2 {[%clk 0:00:41.5]} 20... Nc6 {[%clk 0:01:05.2]} 21. Nc4
{[%clk 0:00:37.7]} 21... Qa7 {[%clk 0:01:04.1]} 22. Rxd8+ {[%clk 0:00:33.3]}
22... Rxd8 {[%clk 0:01:03.4]} 23. Qe1 {[%clk 0:00:32.2]} 23... Nb4 {[%clk
0:00:58.7]} 24. Qe2 {[%clk 0:00:32]} 24... Bc3 {[%clk 0:00:49.2]} 25. Rd1 {[%clk
0:00:30.9]} 25... Qb8 {[%clk 0:00:47.6]} 26. Bxb8 {[%clk 0:00:28]} 1-0

[Event "Early-Titled-Tuesday-Blitz-March-05-2024"]
[Site "Chess.com"]
[Date "2024.03.05"]
[Round "10"]
[White "pfalcon1949"]
[Black "DarZay"]
[Result "0-1"]
[WhiteElo "1954"]
[BlackElo "2330"]
[TimeControl "180+1"]
[EndTime "9:56:33 PST"]
[Termination "DarZay won by checkmate"]

1. e4 {[%clk 0:03:00.9]} 1... c5 {[%clk 0:02:56.2]} 2. Nf3 {[%clk 0:03:00]} 2...
Nc6 {[%clk 0:02:56.1]} 3. d4 {[%clk 0:02:58.9]} 3... cxd4 {[%clk 0:02:56.4]} 4.
Nxd4 {[%clk 0:02:58.6]} 4... Nf6 {[%clk 0:02:56.4]} 5. Nc3 {[%clk 0:02:56.7]}
5... d6 {[%clk 0:02:56.4]} 6. Bg5 {[%clk 0:02:54.8]} 6... e6 {[%clk 0:02:54.5]}
7. Qd2 {[%clk 0:02:53.4]} 7... a6 {[%clk 0:02:54.5]} 8. O-O-O {[%clk 0:02:52.1]}
8... Bd7 {[%clk 0:02:53.3]} 9. f4 {[%clk 0:02:43.8]} 9... Be7 {[%clk 0:02:53.2]}
10. Kb1 {[%clk 0:02:35.4]} 10... b5 {[%clk 0:02:52.6]} 11. Nxc6 {[%clk
0:02:32.8]} 11... Bxc6 {[%clk 0:02:52.2]} 12. Bxf6 {[%clk 0:02:32.2]} 12... gxf6
{[%clk 0:02:52]} 13. Bd3 {[%clk 0:02:31.4]} 13... Qa5 {[%clk 0:02:50.8]} 14. f5
{[%clk 0:02:21.3]} 14... b4 {[%clk 0:02:45.9]} 15. Ne2 {[%clk 0:02:13.5]} 15...
d5 {[%clk 0:02:40]} 16. fxe6 {[%clk 0:02:09.8]} 16... fxe6 {[%clk 0:02:39.8]}
17. exd5 {[%clk 0:02:04.7]} 17... Bxd5 {[%clk 0:02:39.2]} 18. b3 {[%clk
0:02:04.2]} 18... Qb6 {[%clk 0:02:28.2]} 19. Nf4 {[%clk 0:02:01.4]} 19... Bb7
{[%clk 0:02:22]} 20. Rhe1 {[%clk 0:01:56.1]} 20... e5 {[%clk 0:02:21.4]} 21. Nh5
{[%clk 0:01:33.8]} 21... O-O-O {[%clk 0:02:13.7]} 22. Qh6 {[%clk 0:01:14.8]}
22... e4 {[%clk 0:02:06.5]} 23. Be2 {[%clk 0:01:09.7]} 23... Qf2 {[%clk
0:02:00.7]} 24. Bc4 {[%clk 0:00:47.4]} 24... Qf5 {[%clk 0:01:26.6]} 25. Ng7
{[%clk 0:00:35.8]} 25... Qe5 {[%clk 0:01:17.7]} 26. Ne6 {[%clk 0:00:25.6]} 26...
Rxd1+ {[%clk 0:01:10.1]} 27. Rxd1 {[%clk 0:00:25.1]} 27... f5 {[%clk 0:01:09.7]}
28. Qd2 {[%clk 0:00:19.3]} 28... Bf6 {[%clk 0:00:54.7]} 29. Qd6 {[%clk
0:00:18.7]} 29... Qb2# {[%clk 0:00:52.9]} 0-1